bitfinex/quotes_SOLUSD_20250924
["timestamp","ask_amount","ask_price","bid_price","bid_amount"]
[1758673064155,1e-08,214.9,214.89,20.1145918]
[1758673064351,1e-08,214.9,214.89,56.4545918]
[1758673064978,0.67000001,214.9,214.89,20.1145918]
[1758673065144,0.67000001,214.9,214.89,56.4545918]
[1758673065660,1e-08,214.9,214.89,56.4545918]
[1758673066477,0.67000001,214.9,214.89,56.4545918]
[1758673066971,0.67000001,214.9,214.89,20.1145918]
[1758673067153,0.67000001,214.9,214.89,56.4345918]
[1758673068070,0.67000001,214.9,214.89,20.1145918]
[1758673068246,0.67000001,214.9,214.89,51.78104813]
[1758673068649,0.67000001,214.9,214.89,56.4345918]
[1758673069073,0.67000001,214.9,214.89,51.78104813]
[1758673069249,0.67000001,214.9,214.89,13.59559401]
[1758673069457,0.67000001,214.9,214.89,54.56913768]
[1758673069766,0.67000001,214.9,214.89,49.91559401]
[1758673069962,0.67000001,214.9,214.84,25.55818563]
[1758673069963,5.32332713,214.9,214.81,11.63776913]
[1758673070169,0.67,214.89,214.82,13.59559401]
[1758673070364,4.65332713,214.9,214.77,0.71]
[1758673070365,0.66,214.88,214.84,13.59559401]
[1758673070677,0.66,214.87,214.85,36.32]
[1758673070879,0.66,214.86,214.85,36.32]
[1758673072487,0.66,214.86,214.85,40.97441005]
[1758673073852,0.66,214.86,214.85,36.32]
[1758673074770,0.66,214.86,214.81,13.59559401]
[1758673074963,0.66,214.86,214.77,0.65]
[1758673074964,0.66,214.85,214.75,11.64101023]
[1758673075174,0.66,214.84,214.76,49.91559401]
[1758673075366,0.66,214.83,214.81,4.65385102]
[1758673075555,26.0,214.86,214.82,36.32]
[1758673075887,30.65424292,214.86,214.82,36.32]
[1758673076061,0.66,214.85,214.82,36.32]
[1758673076383,0.66,214.84,214.82,36.32]
[1758673076775,0.66000001,214.9,214.83,14.24559401]
[1758673076957,1e-08,214.9,214.85,13.59559401]
[1758673077156,1e-08,214.9,214.87,13.59559401]
[1758673077360,1e-08,214.9,214.88,36.34]
[1758673077683,0.66000001,214.9,214.88,36.34]
[1758673078057,0.66000001,214.9,214.89,4.65354367]
[1758673078904,0.66000001,214.9,214.88,40.99373567]
[1758673079070,0.66,214.89,214.88,54.58932968]
[1758673079390,1e-08,214.9,214.88,54.58932968]
[1758673079593,0.66000001,214.9,214.89,36.34]
[1758673079774,0.66000001,214.9,214.88,18.24932968]
[1758673079968,0.66000001,214.9,214.89,36.34]
[1758673080383,0.66000001,214.9,214.89,40.99354367]
[1758673081275,1e-08,214.9,214.89,55.23913768]
[1758673081591,1e-08,214.9,214.89,54.58913768]
[1758673082489,1e-08,214.9,214.89,58.06442873]
[1758673083592,0.66000001,214.9,214.89,58.06442873]
[1758673083811,1e-08,214.9,214.89,58.06442873]
[1758673084111,0.66000001,214.9,214.89,58.06442873]
[1758673084319,0.66000001,214.9,214.89,44.46883472]
[1758673085126,0.66000001,214.9,214.89,3.47639531]
[1758673085299,0.66000001,214.9,214.89,39.79639531]
[1758673086414,5.31332713,214.9,214.89,3.47639531]
[1758673086712,5.31332713,214.9,214.87,36.32]
[1758673086891,0.66,214.89,214.88,36.32]
[1758673089505,0.66,214.89,214.88,39.79818114]
[1758673089700,1e-08,214.9,214.88,44.45194137]
[1758673089900,1e-08,214.9,214.89,17.72377515]
[1758673090226,1e-08,214.9,214.89,22.37731882]
[1758673094226,1e-08,214.9,214.89,22.3747857]
[1758673097428,1e-08,214.93,214.92,39.59559401]
[1758673097635,1e-08,214.93,214.92,79.39124203]
[1758673097841,1e-08,214.93,214.92,80.07124203]
[1758673098136,1e-08,214.93,214.92,81.93608737]
[1758673098724,1e-08,214.93,214.92,86.58898147]
[1758673103720,1e-08,214.96,214.95,39.59559401]
[1758673103928,1e-08,214.96,214.95,79.39124203]
[1758673104132,1e-08,214.96,214.95,80.05124203]
[1758673104346,1e-08,214.96,214.95,81.91582657]
[1758673104643,0.1,215.0,214.99,26.0]
[1758673104644,1e-08,215.0,214.99,26.0]
[1758673104954,1e-08,215.0,214.99,79.39124203]
[1758673105122,1e-08,215.0,214.99,80.05124203]
[1758673105326,1e-08,215.0,214.99,94.03301911]
[1758673105745,1e-08,215.0,214.99,98.68439824]
[1758673110927,0.72000001,215.0,214.99,61.70439824]
[1758673111250,0.72000001,215.0,214.99,72.00439824]
[1758673111424,1e-08,215.0,214.99,72.00439824]
[1758673112330,0.72000001,215.0,214.99,72.00439824]
[1758673112628,0.72000001,215.0,214.99,68.52875022]
[1758673113640,0.72000001,215.0,214.99,32.22875022]
[1758673113856,0.72000001,215.0,214.99,68.52875022]
[1758673115052,1e-08,215.0,214.99,68.52875022]
[1758673115440,0.72000001,215.0,214.99,68.52875022]
[1758673116370,0.72000001,215.0,214.99,32.22875022]
[1758673116546,0.72000001,215.0,214.99,36.3]
[1758673117247,0.72000001,215.0,214.95,13.98829646]
[1758673117453,0.72,214.99,214.96,49.89559401]
[1758673117631,0.72,214.98,214.96,49.89559401]
[1758673117832,0.72,214.97,214.96,49.89559401]
[1758673118554,0.72,214.99,214.96,49.89559401]
[1758673118742,1e-08,215.0,214.96,50.55559401]
[1758673118938,0.72,214.99,214.96,49.89559401]
[1758673119136,0.72,214.98,214.97,36.3]
[1758673119350,0.72,214.98,214.97,49.89559401]
[1758673119558,1e-08,215.0,214.98,13.59559401]
[1758673119742,1e-08,215.0,214.99,49.89559401]
[1758673120258,0.72000001,215.0,214.99,49.89559401]
[1758673120943,0.72000001,215.0,214.99,54.54697314]
[1758673121338,0.72000001,215.0,214.99,36.3]
[1758673121833,5.3711628,215.0,214.99,36.3]
[1758673122167,0.72000001,215.0,214.99,36.3]
[1758673122462,0.72000001,215.0,214.98,36.3]
[1758673122645,0.72,214.99,214.93,13.59559401]
[1758673122837,1e-08,215.0,214.96,4.65202828]
[1758673123050,0.72,214.98,214.97,36.3]
[1758673123366,26.0,214.94,214.8,0.66]
[1758673123528,0.72,214.93,214.78,16.29574447]
[1758673123733,0.72,214.92,214.79,12.68]
[1758673123957,0.72,214.91,214.79,12.68]
[1758673124256,0.72,214.9,214.8,14.25559401]
[1758673124457,0.72,214.89,214.81,37.18]
[1758673124653,0.72,214.89,214.83,13.59559401]
[1758673124841,0.72,214.89,214.85,4.65441005]
[1758673125041,0.72,214.91,214.87,13.59559401]
[1758673125243,0.72,214.91,214.88,36.52]
[1758673125433,0.72,214.9,214.89,36.54]
[1758673126366,1e-08,215.0,214.9,13.59559401]
[1758673126533,0.72,214.95,214.9,13.59559401]
[1758673126733,0.72,214.94,214.9,13.59559401]
[1758673127033,0.72,214.93,214.9,18.24892091]
[1758673127257,0.72,214.92,214.9,18.24892091]
[1758673127954,0.72,214.94,214.9,44.24892091]
[1758673128148,0.72,214.93,214.9,44.24892091]
[1758673129149,0.72,214.95,214.9,18.24892091]
[1758673129349,0.72,214.94,214.9,18.24892091]
[1758673129941,0.72,214.97,214.91,0.66]
[1758673130158,0.72,214.97,214.92,36.54]
[1758673130458,0.67,214.97,214.92,37.24]
[1758673130631,0.67,214.97,214.92,36.54]
[1758673130836,0.67,214.97,214.92,37.24]
[1758673132158,0.67,214.97,214.94,4.65246115]
[1758673132462,0.67,214.97,214.95,36.52]
[1758673132651,26.67000001,215.0,214.95,37.22]
[1758673132963,0.67000001,215.0,214.95,37.22]
[1758673133459,1e-08,215.0,214.95,36.52]
[1758673133667,0.67000001,215.0,214.96,14.29559401]
[1758673133840,1e-08,215.0,214.96,14.29559401]
[1758673134044,1e-08,215.0,214.99,4.65137913]
[1758673134260,1e-08,215.0,214.99,41.15137913]
[1758673135143,0.67000001,215.0,214.99,36.5]
[1758673135746,1e-08,215.0,214.99,36.5]
[1758673135946,0.67000001,215.0,214.99,36.5]
[1758673136380,0.67000001,215.0,214.95,13.59559401]
[1758673136551,0.67000001,215.0,214.91,37.63245047]
[1758673136552,0.67,214.99,214.96,36.48]
[1758673136743,0.67,214.98,214.97,36.48]
[1758673137151,0.67,214.98,214.93,13.59559401]
[1758673137471,0.67,214.97,214.94,36.48]
[1758673137682,0.67,214.96,214.94,36.48]
[1758673137846,30.65127665,215.0,214.94,36.48]
[1758673138043,0.67,214.99,214.94,36.48]
[1758673138254,0.67,214.98,214.95,4.6522447]
[1758673138575,0.67,214.97,214.94,36.48]
[1758673138744,0.67,214.96,214.9,13.59559401]
[1758673138939,26.0,214.97,214.91,37.18]
[1758673139450,0.67,214.98,214.91,37.18]
[1758673140070,0.67000001,215.0,214.92,30.58072336]
[1758673140270,0.67000001,215.0,214.93,0.7]
[1758673140583,0.67000001,215.0,214.94,36.46]
[1758673141146,0.67000001,215.0,214.95,4.6522447]
[1758673141347,1e-08,215.0,214.96,0.7]
[1758673141561,1e-08,215.0,214.97,36.46]
[1758673142256,0.67000001,215.0,214.97,36.46]
[1758673142447,0.67000001,215.0,214.98,3.47038189]
[1758673142654,0.67000001,215.0,214.97,36.46]
[1758673142655,0.67000001,215.0,214.99,3.47038189]
[1758673143167,0.67000001,215.0,214.97,36.46]
[1758673143374,1e-08,215.0,214.97,41.11172005]
[1758673143583,0.67000001,215.0,214.97,41.11172005]
[1758673143768,1e-08,215.0,214.97,41.11172005]
[1758673144277,0.67,214.99,214.97,36.46]
[1758673144481,0.67,214.98,214.97,36.46]
[1758673144662,1e-08,215.0,214.97,36.46]
[1758673144863,0.67,214.99,214.97,36.46]
[1758673145180,1e-08,215.0,214.97,41.11180354]
[1758673145373,0.67000001,215.0,214.97,41.11180354]
[1758673146800,1e-08,215.0,214.97,41.11180354]
[1758673147361,1e-08,215.0,214.97,41.81180354]
[1758673148271,1e-08,215.0,214.97,41.11180354]
[1758673150361,0.67000001,215.0,214.97,41.11180354]
[1758673150686,0.67000001,215.0,214.97,36.46]
[1758673150987,0.67,214.99,214.97,36.46]
[1758673151983,1e-08,215.0,214.92,25.22756338]
[1758673151984,0.67,214.98,214.96,36.38]
[1758673152189,0.67,214.97,214.96,36.38]
[1758673152358,26.0,214.98,214.96,36.38]
[1758673152565,1e-08,215.0,214.96,41.73200435]
[1758673152862,1e-08,215.0,214.97,0.7]
[1758673154590,1e-08,215.0,214.96,41.03200435]
[1758673154768,1e-08,215.0,214.96,41.69200435]
[1758673154967,1e-08,215.0,214.97,5.31159713]
[1758673155301,1e-08,215.0,214.97,16.94112683]
[1758673155472,1e-08,215.0,214.97,4.65159713]
[1758673155795,1e-08,215.0,214.97,5.31159713]
[1758673155996,1e-08,215.0,214.97,4.65159713]
[1758673156493,1e-08,215.0,214.97,5.31159713]
[1758673156705,1e-08,215.0,214.97,4.65159713]
[1758673156891,0.68,214.99,214.97,36.36]
[1758673157095,0.68,214.98,214.97,36.36]
[1758673157399,26.68,214.98,214.95,36.38]
[1758673157586,26.68,214.98,214.91,0.66]
[1758673157587,0.68,214.97,214.91,0.66]
[1758673157766,0.68,214.97,214.92,36.38]
[1758673157964,0.68,214.97,214.93,0.66]
[1758673158163,26.0,214.98,214.94,0.66]
[1758673158377,1e-08,215.0,214.95,36.4]
[1758673158585,1e-08,215.0,214.96,13.59559401]
[1758673158785,1e-08,215.0,214.96,14.25559401]
[1758673158970,1e-08,215.0,214.98,4.65159549]
[1758673159172,1e-08,215.0,214.99,36.42]
[1758673159363,1e-08,215.0,214.99,37.08]
[1758673159571,1e-08,215.0,214.99,36.42]
[1758673159767,1e-08,215.0,214.99,37.08]
[1758673160493,1e-08,215.0,214.99,50.67559401]
[1758673161079,1e-08,215.0,214.99,55.32697314]
[1758673164890,1e-08,215.0,214.99,55.28697314]
[1758673165298,1e-08,215.0,214.99,54.62697314]
[1758673169288,1e-08,215.0,214.99,41.74137913]
[1758673169475,1e-08,215.0,214.99,41.03137913]
[1758673170881,1e-08,215.0,214.99,55.33697314]
[1758673172610,1e-08,215.0,214.99,54.62697314]
[1758673172779,1e-08,215.0,214.99,55.33697314]
[1758673185704,1e-08,215.0,214.99,69.35697314]
[1758673185907,1e-08,215.0,214.99,83.3367956]
[1758673187692,0.8,215.12,215.03,13.59559401]
[1758673187899,0.8,215.12,215.05,13.59559401]
[1758673188105,0.8,215.12,215.07,13.59559401]
[1758673188307,0.8,215.12,215.08,36.3]
[1758673189014,0.7,215.11,215.1,13.59559401]
[1758673189222,0.1,215.12,215.1,49.89559401]
[1758673189600,0.7,215.11,215.1,49.89559401]
[1758673191115,0.7,215.11,215.1,54.54459447]
[1758673191313,0.7,215.11,215.06,11.62426378]
[1758673191511,0.68,215.1,215.08,13.59559401]
[1758673191727,0.1,215.12,215.09,36.3]
[1758673191924,0.1,215.12,215.1,36.3]
[1758673192218,0.1,215.12,215.11,36.3]
[1758673192900,0.78,215.12,215.11,36.3]
[1758673194024,0.78,215.12,215.11,40.94878434]
[1758673194329,0.1,215.12,215.11,54.54437835]
[1758673196501,0.78,215.12,215.11,54.54437835]
[1758673197528,0.1,215.12,215.11,54.54437835]
[1758673201731,0.1,215.12,215.11,55.24437835]
[1758673203407,0.68,215.2,215.12,13.59559401]
[1758673203621,0.68,215.2,215.16,13.59559401]
[1758673203825,0.68,215.2,215.18,13.59559401]
[1758673204026,0.68,215.2,215.19,49.89559401]
[1758673204234,26.0,215.23,215.19,49.89559401]
[1758673204526,28.4329145,215.28,215.19,49.89559401]
[1758673204719,26.0,215.26,215.2,13.59559401]
[1758673204912,0.68,215.25,215.21,36.3]
[1758673205108,0.68,215.24,215.21,36.3]
[1758673205312,0.68,215.23,215.21,36.3]
[1758673205736,0.68,215.23,215.22,4.64640832]
[1758673207736,0.68,215.23,215.21,36.3]
[1758673207937,0.68,215.23,215.21,40.94655227]
[1758673208832,0.68,215.27,215.22,13.59559401]
[1758673209026,0.68,215.26,215.23,36.28]
[1758673209739,0.68,215.26,215.24,4.64597658]
[1758673209947,26.0,215.3,215.25,36.28]
[1758673210246,30.64468634,215.3,215.26,36.28]
[1758673210454,0.68,215.29,215.21,4.64660912]
[1758673210633,0.68,215.28,215.22,49.87559401]
[1758673210955,0.68,215.27,215.22,49.87559401]
[1758673211634,5.32554492,215.26,215.23,36.28]
[1758673211958,0.68,215.25,215.2,13.59559401]
[1758673212254,0.69,215.24,215.21,36.28]
[1758673212550,0.69,215.23,215.22,36.28]
[1758673213441,4.64554492,215.26,215.22,36.28]
[1758673213756,4.64597658,215.24,215.22,36.28]
[1758673213941,0.69,215.23,215.22,36.28]
[1758673215323,0.69,215.26,215.22,41.57640832]
[1758673215526,0.69,215.28,215.22,41.57640832]
[1758673215745,4.64489758,215.29,215.22,41.57640832]
[1758673215949,0.69,215.27,215.22,40.92640832]
[1758673216258,0.69,215.26,215.22,40.92640832]
[1758673216834,0.69,215.26,215.23,13.59559401]
[1758673217649,0.69,215.26,215.24,4.64597658]
[1758673217861,0.69,215.26,215.25,36.28]
[1758673218360,0.69,215.28,215.25,36.28]
[1758673218534,134.59,215.3,215.25,36.28]
[1758673218735,134.59,215.3,215.26,0.65]
[1758673220166,133.9,215.3,215.26,4.64554492]
[1758673220339,0.69,215.29,215.26,4.64554492]
[1758673220538,0.66,215.28,215.26,4.64554492]
[1758673220950,134.56,215.3,215.26,4.64554492]
[1758673221661,0.1,215.34,215.27,14.29559401]
[1758673221838,0.76,215.34,215.28,36.26]
[1758673222337,0.76,215.34,215.29,4.64489758]
[1758673222538,0.66,215.33,215.29,4.64489758]
[1758673223545,0.1,215.34,215.3,0.7]
[1758673223746,0.1,215.34,215.31,36.26]
[1758673224149,0.1,215.34,215.32,4.64425041]
[1758673224845,0.1,215.34,215.31,36.26]
[1758673225048,0.66,215.33,215.31,36.26]
[1758673225244,0.66,215.33,215.32,36.26]
[1758673225676,0.1,215.34,215.32,36.26]
[1758673225881,0.1,215.34,215.33,14.29559401]
[1758673226045,0.1,215.34,215.32,36.26]
[1758673226249,0.1,215.34,215.32,40.90413417]
[1758673226757,0.1,215.34,215.33,0.7]
[1758673227761,0.1,215.34,215.33,36.96]
[1758673229850,0.1,215.34,215.33,40.90403473]
[1758673230374,0.1,215.34,215.32,13.59559401]
[1758673230672,0.1,215.34,215.33,36.26]
[1758673230861,0.1,215.34,215.33,14.29559401]
[1758673231171,0.1,215.34,215.33,50.55559401]
[1758673232182,0.1,215.34,215.33,55.19962874]
[1758673235071,0.1,215.34,215.33,54.49962874]
[1758673235774,0.1,215.34,215.33,55.19962874]
[1758673237175,0.1,215.34,215.33,54.49962874]
[1758673237353,0.1,215.34,215.33,55.19962874]
[1758673237554,0.1,215.34,215.33,36.26]
[1758673237764,0.1,215.34,215.32,4.64424314]
[1758673237965,0.1,215.34,215.33,36.24]
[1758673239456,0.1,215.34,215.33,40.88403473]
[1758673239852,0.1,215.34,215.33,55.17962874]
[1758673240576,0.76,215.34,215.33,54.47962874]
[1758673240784,0.76,215.34,215.33,36.24]
[1758673240785,0.1,215.34,215.33,36.24]
[1758673241080,0.1,215.34,215.33,40.88403473]
[1758673242064,0.1,215.34,215.33,36.24]
[1758673242278,0.1,215.34,215.33,40.88403473]
[1758673242458,0.1,215.34,215.33,41.58403473]
[1758673242759,0.1,215.34,215.33,40.88315201]
[1758673243180,0.1,215.34,215.33,45.52718674]
[1758673243563,0.1,215.34,215.33,59.12278075]
[1758673243861,0.1,215.34,215.33,59.82278075]
[1758673244884,0.76,215.34,215.33,40.88315201]
[1758673245067,0.76,215.34,215.33,4.64315201]
[1758673245269,5.40381907,215.34,215.33,40.88315201]
[1758673245484,0.76,215.34,215.33,40.88315201]
[1758673246772,0.1,215.34,215.33,40.88315201]
[1758673247173,0.1,215.34,215.33,59.12278075]
[1758673247376,0.1,215.34,215.33,59.82278075]
[1758673250067,0.1,215.34,215.33,23.58278075]
[1758673250275,0.1,215.34,215.33,59.82278075]
[1758673252464,0.1,215.34,215.33,23.58278075]
[1758673252776,1e-08,215.34,215.33,59.82278075]
[1758673255180,1e-08,215.34,215.33,23.58278075]
[1758673255386,1e-08,215.34,215.33,59.82278075]
[1758673258183,1e-08,215.34,215.33,59.80278075]
[1758673261393,1e-08,215.34,215.33,23.58278075]
[1758673261568,1e-08,215.34,215.33,59.80278075]
[1758673262976,213.9,215.48,215.34,13.59559401]
[1758673263183,0.7,215.42,215.36,13.59559401]
[1758673263402,0.7,215.41,215.37,36.22]
[1758673263581,0.7,215.4,215.38,36.22]
[1758673263777,0.7,215.39,215.38,36.22]
[1758673264393,0.7,215.39,215.38,40.86295663]
[1758673264599,0.7,215.43,215.38,53.16034821]
[1758673264783,0.7,215.42,215.38,66.43065441]
[1758673264982,4.64062017,215.49,215.38,16.25034821]
[1758673265186,4.64034703,215.51,215.39,36.22]
[1758673265481,13.59559401,215.57,215.39,36.22]
[1758673265482,0.7,215.48,215.4,14.28559401]
[1758673265692,0.7,215.47,215.42,13.59559401]
[1758673265889,0.7,215.46,215.43,36.22]
[1758673266093,0.7,215.45,215.43,36.22]
[1758673266305,0.7,215.45,215.44,36.22]
[1758673266997,0.7,215.45,215.44,38.64972552]
[1758673269308,0.7,215.45,215.44,43.29138909]
[1758673269985,0.7,215.45,215.44,2.42972552]
[1758673270391,0.7,215.45,215.44,36.22]
[1758673271690,0.7,215.45,215.44,54.82067062]
[1758673274399,0.71,215.48,215.44,66.42482955]
[1758673274600,0.71,215.47,215.44,66.42482955]
[1758673274883,0.71,215.49,215.44,66.42482955]
[1758673275083,0.71,215.48,215.44,53.1458225]
[1758673275301,0.71,215.5,215.44,53.1458225]
[1758673276000,0.71,215.5,215.45,13.95576024]
[1758673276195,0.71,215.5,215.46,36.22]
[1758673276511,0.71,215.49,215.47,4.64101731]
[1758673276805,0.71,215.49,215.48,36.22]
[1758673277999,0.71,215.49,215.48,50.17511106]
[1758673278402,0.71,215.49,215.48,54.81591299]
[1758673278599,133.9,215.51,215.48,67.09791781]
[1758673278912,133.9,215.51,215.48,66.41791781]
[1758673279285,0.1,215.52,215.49,14.27559401]
[1758673279483,0.1,215.52,215.5,36.2]
[1758673279685,0.1,215.52,215.5,36.88]
[1758673280190,0.1,215.52,215.51,13.95186606]
[1758673280387,0.1,215.52,215.51,18.59202196]
[1758673280918,0.1,215.52,215.51,32.86761597]
[1758673282190,1e-08,215.52,215.51,32.86761597]
[1758673283009,1e-08,215.52,215.51,69.06761597]
[1758673283907,1e-08,215.52,215.51,68.38761597]
[1758673284112,0.66,215.63,215.55,13.59559401]
[1758673284405,0.66,215.63,215.57,13.59559401]
[1758673284607,0.66,215.63,215.59,13.59559401]
[1758673284792,0.66,215.63,215.6,36.3]
[1758673284994,0.1,215.71,215.6,36.3]
[1758673284995,26.0,215.69,215.6,36.3]
[1758673285402,4.63606861,215.7,215.6,36.3]
[1758673286105,16.22624014,215.7,215.6,36.3]
[1758673286303,16.22624014,215.7,215.6,40.93810048]
[1758673286694,4.73589519,215.71,215.6,52.53364778]
[1758673287203,0.66,215.7,215.61,13.59559401]
[1758673287507,0.66,215.7,215.62,36.28]
[1758673287909,0.66,215.7,215.63,4.63757362]
[1758673288098,5.29608014,215.7,215.63,4.63757362]
[1758673288500,4.63608014,215.7,215.63,4.63757362]
[1758673289734,0.1,215.71,215.63,4.63757362]
[1758673290021,0.1,215.71,215.64,13.94408423]
[1758673290225,0.1,215.71,215.65,36.26]
[1758673291329,0.1,215.71,215.66,4.63692849]
[1758673291814,0.1,215.71,215.65,40.89712503]
[1758673292194,0.1,215.71,215.67,5.29544521]
[1758673292394,0.1,215.71,215.68,36.24]
[1758673292792,0.1,215.71,215.67,5.29544521]
[1758673292999,0.1,215.71,215.68,36.24]
[1758673293796,4.73599956,215.71,215.68,36.24]
[1758673294708,0.1,215.71,215.68,36.24]
[1758673295822,4.73592335,215.71,215.68,36.24]
[1758673296722,4.73592335,215.71,215.68,47.82765786]
[1758673297612,4.73592335,215.71,215.68,11.58765786]
[1758673297808,4.73592335,215.71,215.68,47.76765786]
[1758673298315,26.0,215.68,215.59,0.68]
[1758673298617,26.0,215.68,215.6,34.92325187]
[1758673298797,0.66,215.7,215.61,36.98]
[1758673298992,30.73592335,215.71,215.61,0.68]
[1758673299213,26.0,215.68,215.6,11.58765786]
[1758673299397,0.66,215.67,215.59,31.48]
[1758673299597,26.0,215.68,215.57,0.68]
[1758673299598,0.66,215.66,215.58,13.94797406]
[1758673299808,0.66,215.65,215.59,36.3]
[1758673300014,0.66,215.64,215.53,0.68]
[1758673300206,26.0,215.61,215.55,13.95056848]
[1758673300408,0.66,215.6,215.55,31.28]
[1758673300604,0.66,215.59,215.55,31.28]
[1758673301518,5.29724902,215.65,215.56,0.68]
[1758673301838,4.63724902,215.65,215.56,0.68]
[1758673302421,4.63724902,215.65,215.57,4.6388644]
[1758673302713,4.63724902,215.65,215.58,0.68]
[1758673303506,26.0,215.66,215.58,0.68]
[1758673303707,4.63671349,215.67,215.58,0.68]
[1758673304105,0.66,215.68,215.59,13.59559401]
[1758673304309,30.63649264,215.69,215.6,37.0]
[1758673304527,4.73599446,215.71,215.61,5.3180038]
[1758673304699,0.1,215.71,215.62,14.27559401]
[1758673304897,0.1,215.71,215.63,0.68]
[1758673306306,0.1,215.71,215.64,4.63735856]
[1758673306514,0.1,215.71,215.65,37.0]
[1758673306908,0.1,215.71,215.66,0.68]
[1758673307117,0.1,215.71,215.67,0.68]
[1758673308613,0.1,215.71,215.68,0.68]
[1758673309131,0.1,215.71,215.69,0.68]
[1758673309304,0.1,215.71,215.67,4.63662802]
[1758673309510,0.1,215.71,215.68,0.68]
[1758673309831,0.1,215.71,215.69,0.68]
[1758673310014,0.1,215.71,215.68,0.68]
[1758673310329,0.1,215.71,215.69,0.69]
[1758673310735,0.1,215.71,215.68,4.63640028]
[1758673310916,0.1,215.71,215.68,5.32640028]
[1758673311117,0.1,215.71,215.68,0.69]
[1758673311517,0.1,215.71,215.69,0.69]
[1758673312323,0.1,215.71,215.67,5.32655288]
[1758673312738,0.1,215.71,215.65,40.95694662]
[1758673312922,0.1,215.71,215.67,0.69]
[1758673313235,0.1,215.71,215.68,0.69]
[1758673313941,0.1,215.71,215.69,0.69]
[1758673314130,0.1,215.71,215.7,0.69]
[1758673314334,0.1,215.71,215.68,0.69]
[1758673314722,0.1,215.71,215.69,0.69]
[1758673315026,0.1,215.71,215.7,0.69]
[1758673317034,0.1,215.71,215.7,5.32606861]
[1758673320541,0.1,215.71,215.7,18.92166262]
[1758673322528,0.1,215.71,215.7,55.14166262]
[1758673324049,0.1,215.71,215.68,18.57523929]
[1758673324225,0.1,215.71,215.7,18.92166262]
[1758673325843,0.1,215.71,215.7,18.23166262]
[1758673326026,0.1,215.71,215.7,54.53166262]
[1758673326226,0.1,215.71,215.7,55.22166262]
[1758673326421,0.1,215.71,215.63,23.18770991]
[1758673326422,0.82,215.71,215.65,11.59252257]
[1758673326634,0.1,215.71,215.66,54.5525225]
[1758673326839,0.1,215.71,215.67,0.69]
[1758673327022,0.1,215.71,215.69,13.59559401]
[1758673327222,0.1,215.71,215.7,36.32]
[1758673327525,0.1,215.71,215.7,37.01]
[1758673328338,0.1,215.71,215.7,41.64606861]
[1758673328544,0.1,215.71,215.7,55.24166262]
[1758673329745,26.0,215.84,215.7,66.83183415]
[1758673329923,0.72,215.8,215.72,13.59559401]
[1758673330125,0.72,215.79,215.72,13.59559401]
[1758673330322,0.72,215.79,215.73,36.32]
[1758673331042,0.72,215.78,215.7,4.63606861]
[1758673331243,0.72,215.77,215.71,36.32]
[1758673331423,0.72,215.77,215.72,36.34]
[1758673331618,0.72,215.76,215.73,36.34]
[1758673331850,0.72,215.75,215.72,36.34]
[1758673332045,0.72,215.74,215.66,4.63675596]
[1758673332244,0.72,215.73,215.67,36.34]
[1758673332430,0.72,215.76,215.68,0.69]
[1758673332627,0.72,215.79,215.69,13.59559401]
[1758673332845,0.72,215.79,215.71,13.59559401]